bitfinex/quotes_ETHUSD_20250626
["timestamp","ask_amount","ask_price","bid_price","bid_amount"]
[1750896002316,0.99075808,2418.8,2418.6,0.8204]
[1750896002611,0.2064,2419.0,2418.6,0.8204]
[1750896002784,0.99076642,2418.9,2418.6,0.8204]
[1750896002985,0.99076642,2418.8,2418.6,0.8204]
[1750896003185,0.2064,2419.0,2418.6,0.8204]
[1750896003381,0.99079268,2418.9,2418.6,0.8204]
[1750896003602,0.99079268,2418.8,2418.6,0.8204]
[1750896003785,0.2064,2419.0,2418.6,0.8204]
[1750896003993,0.99078582,2418.9,2418.6,0.8204]
[1750896004196,0.99078582,2418.8,2418.6,0.8204]
[1750896004504,0.2064,2419.0,2418.6,0.8204]
[1750896004680,0.99078844,2418.9,2418.6,0.8204]
[1750896004883,0.99078844,2418.8,2418.6,0.8204]
[1750896005118,0.0872,2419.4,2418.8,0.2064]
[1750896005327,2.91117098,2419.3,2418.8,0.2064]
[1750896005495,2.89434368,2418.6,2418.4,0.7941]
[1750896005684,0.99097176,2418.5,2417.9,0.7941]
[1750896005885,0.99097176,2418.4,2418.3,0.2064]
[1750896006383,0.99090036,2418.4,2418.3,0.2064]
[1750896007089,3.88537604,2418.4,2418.3,0.2064]
[1750896007512,2.89428161,2418.6,2418.3,0.2064]
[1750896007690,3.88500684,2418.5,2418.3,0.2064]
[1750896008015,2.89428623,2418.6,2418.3,0.2064]
[1750896008194,0.99064517,2418.5,2418.3,0.2064]
[1750896008395,2.89428623,2418.6,2418.3,0.2064]
[1750896008593,0.99051174,2418.5,2418.3,0.2064]
[1750896008801,2.89428623,2418.6,2418.3,0.2064]
[1750896009113,0.99051182,2418.5,2418.3,0.2064]
[1750896009281,2.89428623,2418.6,2418.3,0.2064]
[1750896009484,0.99041174,2418.5,2418.3,0.2064]
[1750896009711,2.89427492,2418.6,2418.3,0.2064]
[1750896009917,3.88477291,2418.5,2418.3,0.2064]
[1750896010133,0.99041691,2418.4,2418.3,0.2064]
[1750896010302,1.07761691,2418.4,2418.0,0.2064]
[1750896010625,0.99041691,2418.3,2418.0,3.10125293]
[1750896010927,1.8022,2418.4,2418.0,3.10125293]
[1750896011103,0.99018491,2418.3,2418.1,0.7943]
[1750896011305,0.99015453,2418.6,2418.2,3.10111507]
[1750896011617,2.0086,2418.7,2418.2,3.10111507]
[1750896011618,0.99015453,2418.5,2418.2,3.10111507]
[1750896011818,2.0086,2418.7,2418.2,3.10111507]
[1750896012125,0.98999016,2418.6,2418.3,0.2064]
[1750896012328,1.715,2418.7,2418.6,0.2064]
[1750896012521,2.70493048,2418.7,2418.6,0.2064]
[1750896017094,0.98993048,2418.7,2418.6,0.2064]
[1750896017294,1.715,2419.0,2418.6,3.10063633]
[1750896017521,0.98990191,2418.9,2418.8,0.2064]
[1750896019698,3.88377929,2418.9,2418.8,0.2064]
[1750896019895,2.89401781,2418.8,2418.3,2.89451667]
[1750896020173,0.98990191,2418.7,2418.6,0.2064]
[1750896022310,0.98990191,2418.8,2418.6,3.10063633]
[1750896022505,1.715,2419.0,2418.6,3.52338427]
[1750896022701,0.98992257,2418.9,2418.6,3.10063633]
[1750896022902,0.98992257,2418.8,2418.6,3.10063633]
[1750896023104,1.715,2419.0,2418.6,3.10063633]
[1750896023310,0.98992159,2418.9,2418.6,3.10063633]
[1750896023511,0.98992159,2418.8,2418.6,3.10063633]
[1750896023730,1.715,2419.0,2418.6,3.10063633]
[1750896023946,0.98989747,2418.9,2418.6,0.2064]
[1750896024133,0.98989747,2418.8,2418.6,0.2064]
[1750896024309,4.60876859,2419.0,2418.6,0.2064]
[1750896024637,2.89399852,2418.8,2418.6,0.2064]
[1750896024812,0.98990123,2418.7,2418.6,0.2064]
[1750896025902,3.97127992,2418.7,2418.2,2.89465057]
[1750896026233,3.88414561,2418.6,2418.4,0.2064]
[1750896026436,0.98990123,2418.5,2418.4,0.2064]
[1750896026997,3.88436176,2418.5,2418.4,0.2064]
[1750896027227,3.88436176,2418.5,2418.1,0.7656]
[1750896027228,1.38716194,2418.5,2418.2,0.2064]
[1750896027428,2.89427391,2418.6,2418.2,0.2064]
[1750896027630,0.98998926,2418.5,2418.2,0.2064]
[1750896027807,2.89427391,2418.6,2418.2,0.2064]
[1750896028005,0.98998923,2418.5,2418.2,0.2064]
[1750896028241,2.89427391,2418.6,2418.2,0.2064]
[1750896028410,2.89448432,2418.4,2418.2,0.2064]
[1750896028733,2.89459537,2418.3,2418.2,0.2064]
[1750896028970,2.89459537,2418.3,2418.1,0.7656]
[1750896028971,3.88464911,2418.3,2417.9,0.7518]
[1750896029242,2.89483478,2418.1,2418.0,0.2064]
[1750896029405,3.88457887,2418.2,2418.0,0.2064]
[1750896029899,0.98983656,2418.2,2418.0,0.2064]
[1750896030231,2.89467472,2418.3,2418.0,0.2064]
[1750896030630,2.89483478,2418.1,2418.0,0.2064]
[1750896031018,2.89468979,2418.3,2418.0,0.2064]
[1750896031337,0.98971745,2418.2,2418.0,0.2064]
[1750896031532,3.88455223,2418.1,2418.0,0.2064]
[1750896031726,3.88448634,2418.2,2418.0,0.2064]
[1750896031925,0.98971745,2418.2,2418.0,0.2064]
[1750896033507,3.88442672,2418.3,2418.0,0.2064]
[1750896033710,1.8022,2418.4,2418.0,0.2064]
[1750896033711,0.98971745,2418.2,2418.0,0.2064]
[1750896034011,0.98971745,2418.3,2418.0,0.2064]
[1750896034206,0.2064,2418.5,2418.1,3.68607624]
[1750896034426,2.70408214,2418.4,2418.1,3.89247624]
[1750896034623,1.715,2418.4,2418.1,3.89247624]
[1750896034838,2.70408214,2418.4,2418.1,3.89247624]
[1750896035014,1.715,2418.4,2418.1,3.89247624]
[1750896035341,2.70408214,2418.4,2418.1,4.6022327]
[1750896035643,1.715,2418.4,2418.1,1.70745646]
[1750896035811,2.70408214,2418.4,2418.1,4.60228124]
[1750896036013,1.715,2418.4,2418.1,1.70745646]
[1750896036247,2.70408214,2418.4,2418.1,1.70745646]
[1750896036744,1.715,2418.4,2418.1,0.9977]
[1750896036909,2.70408214,2418.4,2418.1,3.89250918]
[1750896037109,0.98908214,2418.5,2418.2,2.89467155]
[1750896037320,0.98908214,2418.4,2418.2,2.89467155]
[1750896037521,0.98908214,2418.5,2418.2,3.52369757]
[1750896037753,0.98908214,2418.4,2418.2,3.52369757]
[1750896038044,0.98908214,2418.5,2418.2,3.52369757]
[1750896038208,0.98908214,2418.4,2418.2,3.52369757]
[1750896038412,0.98908214,2418.5,2418.2,3.52369757]
[1750896038738,0.98908214,2418.4,2418.2,3.52369757]
[1750896038941,0.98908214,2418.5,2418.2,3.52369757]
[1750896039115,0.98908214,2418.4,2418.2,3.52369757]
[1750896039321,0.98908214,2418.5,2418.2,3.52369757]
[1750896039537,0.98908214,2418.4,2418.2,3.52369757]
[1750896039837,0.98908214,2418.5,2418.2,0.62902602]
[1750896040040,0.98908214,2418.4,2418.1,3.89246893]
[1750896040254,0.98908214,2418.5,2418.4,2.89447568]
[1750896040548,4.60802376,2418.8,2418.3,3.10091272]
[1750896040755,0.98904631,2418.7,2418.5,0.2064]
[1750896041052,0.98904631,2418.6,2418.5,0.2064]
[1750896041248,3.88323625,2418.7,2418.2,3.70010378]
[1750896041468,0.98904631,2418.6,2418.3,3.10097438]
[1750896041631,4.81449838,2418.8,2418.3,0.2064]
[1750896041834,0.98903638,2418.7,2418.3,0.2064]
[1750896042032,0.98903638,2418.6,2418.3,3.10097937]
[1750896042353,1.9204,2418.8,2418.4,2.89441282]
[1750896042647,0.98905836,2418.7,2418.6,0.8054]
[1750896043373,0.2064,2418.9,2418.6,3.69963633]
[1750896043537,0.9889921,2418.8,2418.6,3.69963633]
[1750896043736,0.2064,2418.9,2418.6,3.69963633]
[1750896044055,0.98899244,2418.8,2418.6,3.69963633]
[1750896044254,0.2064,2418.9,2418.6,3.69963633]
[1750896044562,0.98900069,2418.8,2418.6,0.8054]
[1750896044743,0.2064,2418.9,2418.6,0.8054]
[1750896044744,0.2064,2418.9,2418.6,3.69962093]
[1750896045052,0.989001,2418.8,2418.6,0.8054]
[1750896045248,0.2064,2418.9,2418.5,3.1007033]
[1750896045249,3.10037172,2418.9,2418.5,0.2064]
[1750896045551,13.88303063,2418.8,2418.5,0.2064]
[1750896045723,12.89402372,2418.8,2418.5,0.2064]
[1750896046124,0.98901496,2418.7,2418.5,0.2064]
[1750896046335,12.89402372,2418.8,2418.5,0.2064]
[1750896046652,13.10031967,2418.9,2418.5,0.2064]
[1750896046853,0.98902801,2418.8,2418.5,0.2064]
[1750896047038,3.88320607,2418.7,2418.5,0.2064]
[1750896047239,0.98902801,2418.6,2418.5,0.2064]
[1750896047652,3.88326434,2418.6,2418.5,0.2064]
[1750896047856,2.89453198,2418.4,2418.3,0.2064]
[1750896049230,3.46837783,2418.4,2417.8,0.8293]
[1750896049462,0.98938441,2418.3,2417.9,3.10146617]
[1750896049625,3.88402152,2418.3,2417.9,0.2064]
[1750896051154,2.89471523,2418.2,2417.9,0.2064]
[1750896052049,3.88414903,2418.2,2417.9,0.2064]
[1750896052253,2.89471523,2418.2,2417.9,0.2064]
[1750896052452,3.88414903,2418.2,2417.9,0.2064]
[1750896052651,2.89471523,2418.2,2417.9,0.2064]
[1750896052841,3.88414903,2418.2,2417.9,0.2064]
[1750896053049,2.89471523,2418.2,2417.9,0.2064]
[1750896053244,3.88414903,2418.2,2417.9,0.2064]
[1750896053544,2.89471523,2418.2,2417.9,0.2064]
[1750896053861,3.88414903,2418.2,2417.9,0.2064]
[1750896054063,2.89471523,2418.2,2417.9,0.2064]
[1750896054359,0.9894338,2418.2,2417.9,0.2064]
[1750896054535,0.9894338,2418.3,2417.9,3.10136913]
[1750896054736,0.9894338,2418.2,2417.9,3.10136913]
[1750896054951,0.9894338,2418.3,2417.9,3.10136913]
[1750896055170,0.9894338,2418.2,2417.9,0.2064]
[1750896055852,3.884254,2418.2,2417.9,0.2064]
[1750896056735,2.8948202,2418.2,2417.9,0.2064]
[1750896056947,0.9894338,2418.2,2417.9,0.2064]
[1750896059968,0.9894338,2418.2,2417.9,3.10139695]
[1750896060169,0.9894338,2418.3,2417.9,3.10139695]
[1750896060371,4.90213033,2418.4,2417.9,3.10139695]
[1750896060672,0.98966336,2418.3,2417.9,3.10139695]
[1750896060866,4.90213033,2418.4,2417.9,3.10139695]
[1750896061065,0.98966336,2418.3,2417.9,0.2064]
[1750896061273,0.98966994,2418.3,2418.2,3.10104246]
[1750896061439,0.98966994,2418.6,2418.5,0.8016]
[1750896063739,0.98966994,2418.6,2418.5,3.695956]
[1750896064050,1.715,2418.7,2418.5,1.008]
[1750896064244,2.70448139,2418.7,2418.5,1.008]
[1750896066976,4.60920945,2418.7,2418.5,1.008]
[1750896067468,0.98922388,2418.7,2418.5,1.008]
[1750896067672,3.88322691,2418.8,2418.5,1.3982418]
[1750896067875,3.88342532,2418.7,2418.5,1.008]
[1750896068174,2.89400303,2418.8,2418.5,0.2064]
[1750896068363,3.88342631,2418.7,2418.5,0.2064]
[1750896068564,0.98923518,2418.6,2418.5,0.2064]
[1750896068972,0.98923518,2418.7,2418.5,0.2064]
[1750896069170,12.8940486,2418.8,2418.5,0.2064]
[1750896069370,3.88334899,2418.7,2418.5,0.2064]
[1750896070468,0.98917567,2418.7,2418.5,0.2064]
[1750896070848,3.88332381,2418.7,2418.5,0.2064]
[1750896071247,0.98911818,2418.7,2418.5,0.2064]
[1750896071678,0.98911818,2418.6,2418.5,0.2064]
[1750896071875,0.98911818,2418.7,2418.5,0.2064]
[1750896072065,0.98911818,2418.6,2418.5,0.2064]
[1750896072375,2.89465774,2418.3,2418.0,0.7512]
[1750896072563,0.98911818,2418.4,2418.1,2.89477097]
[1750896072886,2.98137994,2418.7,2418.2,0.7512]
[1750896072887,3.88337838,2418.6,2418.2,0.7512]
[1750896073058,0.98911818,2418.5,2418.2,3.64589096]
[1750896073393,4.60916251,2418.7,2418.2,3.64589096]
[1750896073394,0.98911818,2418.6,2418.2,4.01048806]
[1750896073749,3.88339301,2418.6,2418.2,1.1157971]
[1750896074078,0.98911818,2418.6,2418.2,1.1157971]
[1750896074280,4.60916617,2418.7,2418.2,4.01049234]
[1750896074468,0.98928093,2418.6,2418.2,1.1157971]
[1750896074665,2.89423633,2418.6,2418.2,0.7512]
[1750896074871,3.88365848,2418.5,2418.2,0.7512]
[1750896075069,2.89411698,2418.7,2418.2,0.7512]
[1750896075070,3.88358005,2418.6,2418.2,0.7512]
[1750896075270,0.98930113,2418.5,2418.2,0.7512]
[1750896075582,2.89436563,2418.5,2418.2,0.7512]
[1750896075782,3.88366676,2418.5,2418.2,0.7512]
[1750896075986,2.89436563,2418.5,2418.2,0.7512]
[1750896076171,10.0,2418.7,2418.2,4.01043728]
[1750896076374,0.98945836,2418.6,2418.3,2.89458188]
[1750896077090,0.98945836,2418.6,2418.4,0.7817]
[1750896077290,0.98945836,2418.6,2418.4,3.67617443]
[1750896077495,0.98945836,2418.6,2418.4,0.7817]
[1750896078351,0.98945836,2418.6,2418.4,1.47525584]
[1750896078783,2.89430273,2418.6,2418.4,0.7817]
[1750896078990,12.89415839,2418.7,2418.4,0.7817]
[1750896079186,0.98942204,2418.6,2418.4,0.7817]
[1750896079481,12.89415839,2418.7,2418.4,0.7817]
[1750896079662,0.98944539,2418.6,2418.4,0.7817]
[1750896079856,0.98941505,2418.6,2418.4,0.7817]
[1750896080064,10.0,2418.7,2418.4,0.7817]
[1750896080257,0.98944402,2418.6,2418.4,0.7817]
[1750896080462,0.98942681,2418.7,2418.4,1.43879983]
[1750896080674,0.98942681,2418.6,2418.4,1.43879983]
[1750896080877,0.98942681,2418.7,2418.4,4.33326067]
[1750896081072,0.98942681,2418.7,2418.4,4.33325983]
[1750896081286,0.98942681,2418.8,2418.6,2.89422552]
[1750896081459,0.98932605,2419.0,2418.7,1.19142255]
[1750896081788,0.98932605,2418.9,2418.7,1.19142255]
[1750896082081,0.98932605,2419.0,2418.7,1.19142255]
[1750896082281,0.98932605,2418.9,2418.7,4.08548122]
[1750896082583,0.98932605,2419.1,2418.9,0.2064]
[1750896082773,0.98932605,2419.0,2418.9,0.2064]
[1750896083384,0.98932605,2419.1,2418.9,0.2064]
[1750896083574,0.98932605,2419.0,2418.9,3.10027738]
[1750896083776,0.98932605,2419.1,2418.9,3.10027738]
[1750896083979,0.98932605,2419.0,2418.9,3.10027738]
[1750896084186,0.98932605,2419.1,2418.9,3.90177738]
[1750896084484,0.98893743,2419.1,2418.9,3.90177738]
[1750896085300,0.98893743,2419.1,2418.9,1.0079]
[1750896085497,0.98893743,2419.0,2418.9,0.2064]
[1750896085720,0.98893743,2419.0,2418.4,0.7939]
[1750896085880,2.89453632,2418.4,2418.1,0.7939]
[1750896086078,2.89456773,2418.4,2418.1,0.7939]
[1750896086303,2.89456773,2418.4,2417.8,2.89518276]
[1750896086304,3.88397335,2418.3,2418.2,0.2064]
[1750896086598,2.89465899,2418.3,2418.2,0.2064]
[1750896086982,2.89498531,2418.0,2417.6,0.7939]
[1750896087169,2.98218531,2418.0,2417.9,0.2064]
[1750896087477,1.07650415,2418.0,2417.9,0.2064]
[1750896087673,0.98929748,2418.0,2417.7,0.2064]
[1750896088199,2.9104552,2418.1,2417.8,2.89512752]
[1750896088371,5.80535144,2418.1,2417.7,0.2064]
[1750896088772,2.9104552,2418.1,2417.7,0.2064]
[1750896089224,2.9104552,2418.1,2417.7,3.10167704]
[1750896089507,4.81634398,2418.1,2417.7,0.2064]
[1750896089804,2.9104552,2418.1,2417.7,3.1017088]
[1750896090009,2.9104552,2418.1,2417.7,0.2064]
[1750896090206,2.9104552,2418.1,2417.7,3.10166757]
[1750896090504,5.80535509,2418.1,2417.7,0.2064]
[1750896091170,4.81629989,2418.1,2417.7,0.2064]
[1750896091369,1.9214,2418.1,2417.7,0.2064]
[1750896091564,0.9890552,2418.2,2417.9,0.2064]
[1750896091770,0.9890552,2418.2,2418.1,2.89483478]
[1750896091771,1.715,2418.2,2418.1,2.89483478]
[1750896091970,1.1954552,2418.3,2418.1,2.89483478]
[1750896092167,11.715,2418.4,2418.0,3.65699494]
[1750896092404,10.9890552,2418.3,2418.2,0.2064]
[1750896092700,0.98838702,2418.3,2418.2,0.2064]
[1750896093000,2.70338702,2418.4,2418.2,0.2064]
[1750896093212,10.0,2418.3,2418.2,3.10111507]
[1750896093515,1.715,2418.6,2418.2,2.89471507]
[1750896093690,10.98830735,2418.5,2418.3,0.2064]
[1750896095613,13.88266368,2418.5,2418.3,0.2064]
[1750896095778,0.98830735,2418.4,2418.3,0.2064]
[1750896096912,12.54807372,2418.4,2418.3,0.2064]
[1750896097279,15.4425494,2418.4,2418.3,0.2064]
[1750896097521,12.54807372,2418.4,2418.3,0.2064]
[1750896098806,10.0,2418.4,2418.3,0.2064]
[1750896099397,0.98830735,2418.5,2418.3,0.2064]
[1750896099597,10.0,2418.5,2418.3,3.10098096]
[1750896099896,0.98830735,2418.6,2418.4,3.72423795]
[1750896100206,10.0,2418.8,2418.6,2.89423633]
[1750896100207,0.98825478,2418.8,2418.6,2.89423633]
[1750896100406,2.70825478,2419.0,2418.7,0.2064]
[1750896100712,11.72,2419.0,2418.7,0.2064]
[1750896101010,12.70825478,2419.0,2418.7,0.2064]
[1750896101382,0.98825478,2418.9,2418.7,0.2064]
[1750896101708,11.72,2419.0,2418.7,0.2064]
[1750896102005,12.70825478,2419.0,2418.7,0.2064]
[1750896102207,0.98825478,2418.9,2418.7,0.2064]
[1750896102378,11.72,2419.0,2418.7,0.2064]
[1750896102580,12.70825478,2419.0,2418.7,0.2064]
[1750896102787,10.98825478,2418.9,2418.7,0.2064]
[1750896102991,0.98825478,2418.9,2418.7,0.2064]
[1750896103192,11.72,2419.0,2418.7,0.2064]
[1750896103514,10.0,2419.0,2418.9,0.7918]
[1750896103677,10.0,2419.0,2418.9,0.2064]
[1750896104083,10.98775179,2419.0,2418.9,0.2064]
[1750896104612,13.88150954,2419.0,2418.9,0.2064]
[1750896106584,15.56774458,2419.0,2418.3,9.59754134]
[1750896106811,2.89403594,2418.8,2418.4,0.7576]
[1750896107315,3.88167751,2418.9,2418.7,0.2064]
[1750896108020,10.0,2419.0,2418.7,0.2064]
[1750896108597,10.98758102,2419.0,2418.6,2.8942247]
[1750896108889,10.98758102,2419.0,2418.9,0.2064]
[1750896109604,10.0,2419.0,2418.9,0.2064]
[1750896109897,10.98758102,2419.0,2418.9,0.2064]
[1750896110406,13.88133877,2419.0,2418.9,0.2064]
[1750896110720,10.0,2419.0,2418.9,0.2064]
[1750896111622,12.89375775,2419.0,2418.9,0.2064]
[1750896111922,10.0,2419.0,2418.9,0.2064]
[1750896113992,12.89375775,2419.0,2418.9,0.2064]
[1750896114192,10.0,2419.0,2418.9,0.2064]
[1750896116730,12.89375775,2419.0,2418.9,0.2064]
[1750896117102,10.0,2419.0,2418.9,0.2064]
[1750896123442,9.88188215,2419.4,2418.9,1.32883829]
[1750896123443,0.98758496,2419.2,2418.9,1.32883829]
[1750896123632,10.98758496,2419.3,2418.9,1.0188]
[1750896123939,10.98758496,2419.3,2419.1,0.2064]
[1750896125312,10.0,2419.3,2419.1,0.2064]
[1750896125514,10.98758496,2419.3,2419.1,0.2064]
[1750896125714,2.89349931,2419.3,2419.1,0.2064]
[1750896126025,10.0,2419.2,2419.1,0.2064]
[1750896126551,12.89349931,2419.3,2419.1,0.2064]
[1750896126715,10.98872981,2419.2,2419.1,0.2064]
[1750896127115,0.98872981,2419.2,2419.1,0.2064]
[1750896132246,0.98872981,2419.2,2419.1,0.59765458]
[1750896132729,0.98872981,2419.3,2419.1,0.59765458]
[1750896132925,0.98872981,2419.2,2419.1,0.59765458]
[1750896133142,0.98872981,2419.3,2419.1,0.59765458]
[1750896133363,0.98872981,2419.2,2419.1,3.4912927]
[1750896133520,0.9894989,2419.4,2419.2,2.89344552]
[1750896133723,2.89327932,2419.4,2419.1,1.41705458]
[1750896134029,0.9895606,2419.3,2419.2,0.2064]
[1750896134943,3.88295951,2419.3,2419.2,0.2064]
[1750896135265,0.9895606,2419.3,2419.2,0.2064]
[1750896135625,3.88295951,2419.3,2419.2,0.2064]
[1750896136350,0.9895606,2419.3,2419.2,0.2064]
[1750896137923,3.88295951,2419.3,2419.2,0.2064]
[1750896139354,0.9895606,2419.3,2419.2,0.2064]
[1750896140536,0.9895606,2419.4,2419.2,0.2064]
[1750896140736,0.9895606,2419.3,2419.2,0.2064]
[1750896140931,3.88295951,2419.3,2419.2,0.2064]
[1750896141134,0.9895606,2419.3,2419.2,0.2064]
[1750896142138,3.88285942,2419.4,2419.2,0.2064]
[1750896142457,3.88295951,2419.3,2419.2,0.2064]
[1750896142828,0.9895606,2419.3,2419.2,0.2064]
[1750896143231,3.88295951,2419.3,2419.2,0.2064]
[1750896144257,0.9895606,2419.3,2419.2,0.2064]
[1750896152165,1.717,2419.7,2419.4,2.89325442]
[1750896152369,0.99035776,2419.6,2419.4,2.89325442]
[1750896152559,0.99035776,2419.5,2419.3,2.89335596]
[1750896152763,0.99035776,2419.4,2419.3,2.89335596]
[1750896153070,0.99035776,2419.4,2419.3,3.60756075]
[1750896153237,0.99039709,2419.7,2419.5,0.7547]
[1750896153440,0.99039709,2419.6,2419.5,0.7547]
[1750896153669,0.99039709,2419.6,2419.2,0.7547]
[1750896153851,2.89339891,2419.3,2418.9,0.7557]
[1750896154040,2.89339891,2419.3,2419.2,0.2064]
[1750896154240,0.99054127,2419.3,2419.2,0.2064]
[1750896156773,0.99054127,2419.3,2419.2,3.09991851]
[1750896156975,0.0872,2419.6,2419.2,3.09991851]
[1750896157163,0.9904938,2419.5,2419.2,3.09991851]
[1750896157474,0.9904938,2419.4,2419.2,4.53128531]
[1750896157668,13.09935763,2419.7,2419.2,4.53128531]
[1750896157975,0.99047059,2419.6,2419.2,3.93191851]
[1750896158176,0.99047059,2419.5,2419.2,3.93191851]
[1750896158473,0.99047059,2419.4,2419.2,3.93191851]
[1750896158653,13.09935763,2419.7,2419.2,3.93191851]
[1750896158852,0.99049896,2419.6,2419.2,3.93191851]
[1750896159051,0.99049896,2419.5,2419.2,3.93191851]
[1750896159252,0.99049896,2419.4,2419.2,4.61448531]
[1750896159444,13.09935763,2419.7,2419.2,4.61448531]
[1750896159646,0.9905337,2419.6,2419.2,3.93191851]
[1750896159846,0.9905337,2419.5,2419.2,3.93191851]
[1750896160046,0.9905337,2419.4,2419.2,3.93191851]
[1750896160275,0.9905337,2419.3,2419.2,3.93191851]
[1750896161682,0.2064,2419.7,2419.3,2.89338625]
[1750896161878,0.99057319,2419.6,2419.2,1.0384]
[1750896162054,0.99057319,2419.5,2419.4,0.2064]
[1750896162254,0.99057319,2419.5,2419.4,3.57580252]
[1750896162452,0.99057319,2419.5,2419.4,3.78220252]
[1750896162681,0.99057319,2419.5,2419.4,0.8889232]
[1750896163383,0.99057319,2419.5,2419.4,0.2064]
[1750896164384,3.88373293,2419.5,2419.4,0.2064]
[1750896166782,2.89359344,2419.2,2418.3,0.34519398]
[1750896167004,3.8843554,2419.1,2418.8,7.03012262]
[1750896167204,2.89387738,2418.9,2418.8,0.34512262]
[1750896167362,3.88452659,2418.9,2418.8,0.34512262]
[1750896167695,0.99064921,2418.9,2418.8,0.34512262]
[1750896168395,0.99064921,2418.9,2418.7,0.2064]
[1750896168597,10.0,2419.1,2418.7,3.10051564]
[1750896168889,0.99019282,2419.0,2418.7,3.10051564]
[1750896169097,0.99019282,2418.9,2418.7,3.10051564]
[1750896169296,12.89369092,2419.1,2418.7,0.2064]
[1750896169515,0.9899325,2419.0,2418.7,0.2064]
[1750896169662,0.9899325,2418.9,2418.7,0.2064]
[1750896169864,10.0,2419.1,2418.7,3.10051229]
[1750896170184,0.9899247,2419.0,2418.7,0.2064]
[1750896170388,0.9899247,2418.9,2418.7,3.1004975]
[1750896170576,0.9899247,2419.0,2418.7,3.1004975]
[1750896170775,0.9899247,2418.9,2418.7,3.1004975]
[1750896171099,0.9899247,2419.0,2418.7,3.1004975]
[1750896171393,10.0,2419.1,2418.7,3.1004975]
[1750896171612,0.98950261,2419.0,2418.7,3.1004975]
[1750896171791,0.0872,2419.2,2418.5,0.7599]
[1750896171975,5.59820402,2419.1,2418.8,0.2064]
[1750896172176,0.9894851,2419.0,2418.8,0.2064]
[1750896172378,0.9894851,2418.9,2418.8,0.2064]
[1750896172589,0.9894851,2419.0,2418.8,0.2064]
[1750896172789,0.9894851,2418.9,2418.8,0.2064]
[1750896172989,0.9894851,2419.0,2418.8,0.2064]
[1750896173194,0.9894851,2418.9,2418.8,0.2064]
[1750896173400,0.9894851,2419.0,2418.8,0.2064]
[1750896173588,1.715,2419.1,2418.8,0.2064]
[1750896173785,0.98910911,2419.0,2418.8,0.2064]
[1750896174086,0.98896879,2419.0,2418.8,0.2064]
[1750896174891,0.98896879,2418.9,2418.8,0.2064]
[1750896175298,0.98887202,2418.9,2418.8,0.2064]
[1750896175808,0.98887202,2419.0,2418.8,0.2064]
[1750896176402,2.70387202,2419.1,2418.8,0.2064]
[1750896177607,2.70387202,2419.1,2418.8,3.10039699]
[1750896177904,2.70387202,2419.1,2418.8,3.90539699]
[1750896178111,0.98887202,2419.1,2418.8,1.0114]
[1750896178402,2.70387202,2419.1,2418.8,3.90532186]
[1750896178907,0.98887202,2419.1,2418.9,2.89382416]
[1750896179412,10.98887202,2419.1,2418.9,2.89382416]
[1750896179587,10.98887202,2419.1,2418.9,2.89387738]
[1750896180105,11.715,2419.2,2419.0,3.10015775]
[1750896180307,0.98887202,2419.1,2419.0,0.2064]
[1750896180809,1.715,2419.2,2419.0,0.2064]
[1750896181009,2.70387202,2419.2,2419.0,3.10007753]
[1750896181175,0.98887202,2419.4,2419.1,3.72093812]
[1750896181375,10.0,2419.4,2419.3,0.2064]
[1750896181576,0.98887202,2419.4,2419.3,3.09979891]
[1750896182603,1.715,2419.5,2419.3,3.09979891]
[1750896182604,1.715,2419.5,2419.3,0.2064]
[1750896182777,2.70387202,2419.5,2419.3,0.2064]
[1750896182978,11.715,2419.5,2419.3,0.2064]
[1750896183211,0.98887202,2419.4,2419.3,0.2064]
[1750896185211,11.715,2419.5,2419.3,0.2064]
[1750896185710,12.70353473,2419.5,2419.3,0.2064]
[1750896185907,11.715,2419.5,2419.3,0.2064]
[1750896186313,12.70353295,2419.5,2419.3,0.2064]
[1750896186501,11.715,2419.5,2419.3,0.2064]
[1750896186910,12.70353093,2419.5,2419.3,0.2064]
[1750896187082,11.715,2419.5,2419.3,0.2064]
[1750896187283,12.70355583,2419.5,2419.3,0.2064]
[1750896188921,15.59672586,2419.5,2419.3,0.2064]
[1750896189217,0.98855583,2419.4,2419.3,0.2064]
[1750896191722,0.98855583,2419.4,2419.3,3.09979891]
[1750896191897,11.715,2419.5,2419.3,3.09979891]
[1750896191898,11.715,2419.5,2419.4,2.89327932]
[1750896192098,2.70363985,2419.5,2419.4,2.89327932]
[1750896192292,1.715,2419.5,2419.4,3.69898714]
[1750896192493,1.715,2419.5,2419.4,4.50638714]
[1750896193790,0.98863985,2419.7,2419.6,2.89304017]
[1750896194220,0.98863985,2419.7,2419.6,3.09944017]
[1750896194698,0.94730729,2419.7,2419.6,3.09944017]
[1750896194898,0.94730729,2419.7,2419.6,0.2064]
[1750896195222,11.717,2419.8,2419.6,0.2064]
[1750896196299,11.8042,2419.8,2419.3,2.89339196]
[1750896196506,6.69,2419.7,2419.5,0.2064]
[1750896198221,6.69,2419.7,2419.5,3.09954863]
[1750896199504,6.69,2419.7,2419.5,0.2064]
[1750896199710,10.0,2419.8,2419.6,2.89304017]
[1750896200023,1.717,2419.7,2419.6,2.89304017]
[1750896201425,1.717,2419.7,2419.5,3.09950628]
[1750896201641,1.717,2419.7,2419.5,0.2064]
[1750896203095,11.8042,2419.7,2419.5,0.2064]
[1750896206705,0.98878318,2419.6,2419.5,0.2064]
[1750896207239,0.98878318,2419.6,2419.5,3.09955974]
[1750896207810,0.98878318,2419.6,2419.5,0.2064]
[1750896226047,3.88182335,2419.6,2419.5,0.2064]
[1750896226213,10.56682335,2419.6,2419.2,0.7909]
[1750896226414,0.98878318,2419.5,2419.4,0.2064]
[1750896229556,10.2936,2419.4,2418.8,0.2064]
[1750896229759,2.98090311,2419.1,2418.8,0.2064]
[1750896229922,3.88260028,2419.0,2418.8,0.2064]
[1750896230117,3.88266056,2418.9,2418.8,0.2064]
[1750896230323,3.88266056,2418.9,2418.6,0.8147]
[1750896230623,0.98878318,2418.8,2418.6,0.57731635]
[1750896230823,6.685,2418.9,2418.4,0.7591]
[1750896231145,0.99003287,2418.8,2418.6,3.10053325]
[1750896232036,0.99003287,2418.8,2418.6,0.2064]
[1750896232261,0.99003287,2418.8,2418.6,3.10063198]
[1750896232558,0.99003287,2418.8,2418.6,3.77605127]
[1750896232872,0.99003287,2418.8,2418.6,0.88181929]
[1750896233019,0.99003287,2418.8,2418.6,0.2064]